fUSD/lending_fUSD_20250107
["ID","MTS","AMOUNT","RATE_DAILY","PERIOD"]
[348058200,1736287839995,-500.0,9.788e-05,2]
[348058201,1736287840004,-500.0,9.788e-05,2]
[348058202,1736287840013,-500.0,9.788e-05,2]
[348058203,1736287840022,-853.23,9.788e-05,2]
[348058204,1736287840031,-500.0,9.788e-05,2]
[348058205,1736287840040,-722.32,9.788e-05,2]
[348058206,1736287840050,-500.0,9.788e-05,2]
[348058207,1736287840059,-500.0,9.788e-05,2]
[348058208,1736287840068,-500.0,9.788e-05,2]
[348058209,1736287840077,-1897.698612,9.788e-05,2]
[348058210,1736287840086,-500.0,9.788e-05,2]
[348058211,1736287840096,-500.0,9.788e-05,2]
[348058212,1736287840107,-331.31538091,9.788e-05,2]
[348058213,1736287840117,-500.0,9.788e-05,2]
[348058214,1736287840127,-500.0,9.788e-05,2]
[348058215,1736287840136,-500.0,9.788e-05,2]
[348058216,1736287840145,-500.0,9.788e-05,2]
[348058217,1736287840155,-500.0,9.788e-05,2]
[348058218,1736287840164,-500.0,9.788e-05,2]
[348058219,1736287840173,-500.0,9.788e-05,2]
[348058220,1736287840183,-159.403828,9.788e-05,2]
[348058221,1736287840193,-500.0,9.788e-05,2]
[348058222,1736287840202,-543.05875418,9.788e-05,2]
[348058223,1736287840212,-500.0,9.788e-05,2]
[348058224,1736287840221,-500.0,9.788e-05,2]
[348058225,1736287840232,-500.0,9.788e-05,2]
[348058226,1736287840242,-500.0,9.788e-05,2]
[348058227,1736287840252,-500.0,9.788e-05,2]
[348058228,1736287840261,-1258.71,9.788e-05,2]
[348058229,1736287840271,-782.98,9.788e-05,2]
[348058230,1736287840281,-500.0,9.788e-05,2]
[348058231,1736287840291,-500.0,9.788e-05,2]
[348058232,1736287840300,-500.0,9.788e-05,2]
[348058233,1736287840310,-500.0,9.788e-05,2]
[348058234,1736287840319,-500.0,9.788e-05,2]
[348058235,1736287840328,-500.0,9.788e-05,2]
[348058236,1736287840338,-500.0,9.788e-05,2]
[348058237,1736287840347,-500.0,9.788e-05,2]
[348058238,1736287840356,-500.0,9.788e-05,2]
[348058239,1736287840366,-500.0,9.788e-05,2]
[348058240,1736287840375,-859.08,9.788e-05,2]
[348058241,1736287840384,-500.0,9.788e-05,2]
[348058242,1736287840393,-500.0,9.788e-05,2]
[348058243,1736287840403,-978.93,9.788e-05,2]
[348058244,1736287840412,-500.0,9.788e-05,2]
[348058245,1736287840422,-532.77,9.788e-05,2]
[348058246,1736287840431,-563.4,9.788e-05,2]
[348058247,1736287840440,-832.9,9.788e-05,2]
[348058248,1736287840450,-500.0,9.788e-05,2]
[348058249,1736287840458,-500.0,9.788e-05,2]
[348058250,1736287840468,-500.0,9.788e-05,2]
[348058251,1736287840479,-500.0,9.788e-05,2]
[348058252,1736287840488,-2017.356559,9.788e-05,2]
[348058253,1736287840497,-500.0,9.788e-05,2]
[348058254,1736287840506,-500.0,9.788e-05,2]
[348058255,1736287840514,-712.3,9.788e-05,2]
[348058256,1736287840523,-614.47,9.788e-05,2]
[348058257,1736287840533,-500.0,9.788e-05,2]
[348058258,1736287840542,-500.0,9.788e-05,2]
[348058259,1736287840552,-754.38,9.788e-05,2]
[348058260,1736287840561,-500.0,9.788e-05,2]
[348058261,1736287840570,-1195.76,9.788e-05,2]
[348058262,1736287840580,-500.0,9.788e-05,2]
[348058263,1736287840589,-920.83,9.788e-05,2]
[348058264,1736287840598,-823.45,9.788e-05,2]
[348058265,1736287840607,-648.05,9.788e-05,2]
[348058266,1736287840617,-500.0,9.788e-05,2]
[348058267,1736287840626,-500.0,9.788e-05,2]
[348058268,1736287840635,-500.0,9.788e-05,2]
[348058269,1736287840644,-500.0,9.788e-05,2]
[348058270,1736287840653,-500.0,9.788e-05,2]
[348058271,1736287840666,-500.0,9.788e-05,2]
[348058272,1736287840675,-500.0,9.788e-05,2]
[348058273,1736287840684,-500.0,9.788e-05,2]
[348058274,1736287840830,-500.0,9.788e-05,2]
[348058275,1736287840840,-500.0,9.788e-05,2]
[348058276,1736287840850,-253.74008436,9.788e-05,2]
[348058277,1736287840859,-500.0,9.788e-05,2]
[348058278,1736287840869,-500.0,9.788e-05,2]
[348058279,1736287840878,-753.07,9.788e-05,2]
[348058280,1736287840887,-500.0,9.788e-05,2]
[348058281,1736287840897,-684.26,9.788e-05,2]
[348058282,1736287840906,-500.0,9.788e-05,2]
[348058283,1736287840915,-1328.19,9.788e-05,2]
[348058284,1736287840925,-500.0,9.788e-05,2]
[348058285,1736287840934,-500.0,9.788e-05,2]
[348058286,1736287840943,-500.0,9.788e-05,2]
[348058287,1736287840952,-661.47,9.788e-05,2]
[348058288,1736287840961,-374.16283015,9.788e-05,2]
[348058289,1736287840971,-500.0,9.788e-05,2]
[348058290,1736287840981,-500.0,9.788e-05,2]
[348058291,1736287840991,-500.0,9.788e-05,2]
[348058292,1736287841000,-500.0,9.788e-05,2]
[348058293,1736287841009,-500.0,9.788e-05,2]
[348058294,1736287841020,-696.28,9.788e-05,2]
[348058295,1736287841029,-740.13,9.788e-05,2]
[348058296,1736287841039,-500.0,9.788e-05,2]
[348058297,1736287841050,-500.0,9.788e-05,2]
[348058298,1736287841059,-4664.65,9.788e-05,2]
[348058299,1736287841069,-568.98,9.788e-05,2]
[348058300,1736287841078,-500.0,9.788e-05,2]
[348058301,1736287841088,-555.06,9.788e-05,2]
[348058302,1736287841099,-500.0,9.788e-05,2]
[348058303,1736287841109,-500.0,9.788e-05,2]
[348058304,1736287841119,-500.0,9.788e-05,2]
[348058305,1736287841129,-500.0,9.788e-05,2]
[348058306,1736287841138,-500.0,9.788e-05,2]
[348058307,1736287841149,-895.57,9.788e-05,2]
[348058308,1736287841158,-500.0,9.788e-05,2]
[348058309,1736287841167,-500.0,9.788e-05,2]
[348058310,1736287841177,-500.0,9.788e-05,2]
[348058311,1736287841186,-607.03628571,9.788e-05,2]
[348058312,1736287841196,-500.0,9.788e-05,2]
[348058313,1736287841205,-150.0,9.788e-05,2]
[348058314,1736287841214,-500.0,9.788e-05,2]
[348058315,1736287841224,-500.0,9.788e-05,2]
[348058316,1736287841233,-500.0,9.788e-05,2]
[348058317,1736287841242,-500.0,9.788e-05,2]
[348058318,1736287841252,-500.0,9.788e-05,2]
[348058319,1736287841261,-504.94,9.788e-05,2]
[348058320,1736287841275,-500.0,9.788e-05,2]
[348058321,1736287841284,-500.0,9.788e-05,2]
[348058322,1736287841294,-500.0,9.788e-05,2]
[348058323,1736287841303,-110.91867958,9.788e-05,2]
[348058324,1736287841636,-378.00513087,9.788e-05,2]
[348058325,1736287841647,-317.44024505,9.788e-05,2]
[348058326,1736287841697,-348.9259445,9.788e-05,2]
[348058327,1736287841707,-500.0,9.788e-05,2]
[348058328,1736287841716,-607.2,9.788e-05,2]
[348058329,1736287841726,-500.0,9.788e-05,2]
[348058330,1736287841735,-500.0,9.788e-05,2]
[348058331,1736287841747,-500.0,9.788e-05,2]
[348058332,1736287841757,-3085.959912,9.788e-05,2]
[348058333,1736287841772,-53.650088,9.788e-05,2]
[348058334,1736287841782,-500.0,9.788e-05,2]
[348058335,1736287841792,-219.516912,9.788e-05,2]
[348058336,1736287841803,-280.483088,9.788e-05,2]
[348058337,1736287841812,-500.0,9.788e-05,2]
[348058338,1736287841821,-81.76118629,9.788e-05,2]
[348058339,1736287841833,-418.23881371,9.788e-05,2]
[348058340,1736287841843,-500.0,9.788e-05,2]
[348058341,1736287841852,-93.89856676,9.788e-05,2]
[348058342,1736287841863,-406.10143324,9.788e-05,2]
[348058343,1736287841872,-1354.81,9.788e-05,2]
[348058344,1736287841881,-157.22731676,9.788e-05,2]
[348058345,1736287841893,-342.77268324,9.788e-05,2]
[348058346,1736287841903,-500.0,9.788e-05,2]
[348058347,1736287841911,-500.0,9.788e-05,2]
[348058348,1736287841921,-500.0,9.788e-05,2]
[348058349,1736287841930,-500.0,9.788e-05,2]
[348058350,1736287841939,-500.0,9.788e-05,2]
[348058351,1736287841948,-500.0,9.788e-05,2]
[348058352,1736287841958,-500.0,9.788e-05,2]
[348058353,1736287841967,-500.0,9.788e-05,2]
[348058354,1736287841976,-500.0,9.788e-05,2]
[348058355,1736287841986,-1366.2,9.788e-05,2]
[348058356,1736287841995,-500.0,9.788e-05,2]
[348058357,1736287842004,-500.0,9.788e-05,2]
[348058358,1736287842013,-760.31,9.788e-05,2]
[348058359,1736287842022,-500.0,9.788e-05,2]
[348058360,1736287842032,-500.0,9.788e-05,2]
[348058361,1736287842041,-500.0,9.788e-05,2]
[348058362,1736287842050,-519.0,9.788e-05,2]
[348058363,1736287842060,-500.0,9.788e-05,2]
[348058364,1736287842069,-500.0,9.788e-05,2]
[348058365,1736287842078,-500.0,9.788e-05,2]
[348058366,1736287842088,-587.19,9.788e-05,2]
[348058367,1736287842099,-628.77,9.788e-05,2]
[348058368,1736287842109,-500.0,9.788e-05,2]
[348058369,1736287842120,-1873.24,9.788e-05,2]
[348058370,1736287842130,-1164.94,9.788e-05,2]
[348058371,1736287842140,-500.0,9.788e-05,2]
[348058372,1736287842150,-571.82,9.788e-05,2]
[348058373,1736287842160,-1289.97,9.788e-05,2]
[348058374,1736287842170,-500.0,9.788e-05,2]
[348058375,1736287842179,-500.0,9.788e-05,2]
[348058376,1736287842188,-500.0,9.788e-05,2]
[348058377,1736287842198,-778.29,9.788e-05,2]
[348058378,1736287842207,-500.0,9.788e-05,2]
[348058379,1736287842217,-500.0,9.788e-05,2]
[348058380,1736287842228,-500.0,9.788e-05,2]
[348058381,1736287842237,-1324.58,9.788e-05,2]
[348058382,1736287842248,-539.41,9.788e-05,2]
[348058383,1736287842258,-500.0,9.788e-05,2]
[348058384,1736287842268,-277.41381007,9.788e-05,2]
[348058385,1736287842280,-222.58618993,9.788e-05,2]
[348058386,1736287842289,-497.58031029,9.788e-05,2]
[348058387,1736287842305,-2.41968971,9.788e-05,2]
[348058388,1736287842314,-1065.83,9.788e-05,2]
[348058389,1736287842324,-500.0,9.788e-05,2]
[348058390,1736287842333,-500.0,9.788e-05,2]
[348058391,1736287842342,-500.0,9.788e-05,2]
[348058392,1736287842352,-781.39,9.788e-05,2]
[348058393,1736287842361,-500.0,9.788e-05,2]
[348058394,1736287842370,-500.0,9.788e-05,2]
[348058395,1736287842380,-500.0,9.788e-05,2]
[348058396,1736287842390,-500.0,9.788e-05,2]
[348058397,1736287842399,-500.0,9.788e-05,2]
[348058398,1736287842408,-500.0,9.788e-05,2]
[348058399,1736287842418,-500.0,9.788e-05,2]
[348058400,1736287842427,-1613.73,9.788e-05,2]
[348058401,1736287842436,-416.39151029,9.788e-05,2]
[348058402,1736287842448,-83.60848971,9.788e-05,2]
[348058403,1736287842458,-184.51251027,9.788e-05,2]
[348058404,1736287842470,-315.48748973,9.788e-05,2]
[348058405,1736287842480,-813.85,9.788e-05,2]
[348058406,1736287842491,-500.0,9.788e-05,2]
[348058407,1736287842500,-500.0,9.788e-05,2]
[348058408,1736287842510,-500.0,9.788e-05,2]
[348058409,1736287842519,-500.0,9.788e-05,2]
[348058410,1736287842528,-940.18937776,9.788e-05,2]
[348058411,1736287842540,-625.85080956,9.788e-05,2]
[348058412,1736287842551,-4988.72981268,9.788e-05,2]
[348058413,1736287842562,-1429.25,9.788e-05,2]
[348058417,1736287842707,-500.0,9.788e-05,2]
[348058419,1736287842716,-500.0,9.788e-05,2]
[348058421,1736287842726,-500.0,9.788e-05,2]
[348058423,1736287842737,-500.0,9.788e-05,2]
[348058425,1736287842746,-500.0,9.788e-05,2]
[348058427,1736287842755,-500.0,9.788e-05,2]
[348058429,1736287842764,-244.42018732,9.788e-05,2]
[348058430,1736287842776,-255.57981268,9.788e-05,2]
[348058431,1736287842785,-544.33,9.788e-05,2]
[348058432,1736287842794,-500.0,9.788e-05,2]
[348058433,1736287842804,-1129.58,9.788e-05,2]
[348058434,1736287842814,-647.76,9.788e-05,2]
[348058435,1736287842823,-500.0,9.788e-05,2]
[348058436,1736287842832,-500.0,9.788e-05,2]
[348058437,1736287842842,-704.64,9.788e-05,2]
[348058438,1736287842851,-500.0,9.788e-05,2]
[348058439,1736287842860,-500.0,9.788e-05,2]
[348058440,1736287842869,-500.0,9.788e-05,2]
[348058441,1736287842878,-631.6,9.788e-05,2]
[348058442,1736287842887,-500.0,9.788e-05,2]
[348058443,1736287842896,-593.96,9.788e-05,2]
[348058444,1736287842905,-500.0,9.788e-05,2]
[348058445,1736287842916,-500.0,9.788e-05,2]
[348058446,1736287842925,-1649.55,9.788e-05,2]
[348058447,1736287842935,-500.0,9.788e-05,2]
[348058448,1736287842944,-500.0,9.788e-05,2]
[348058449,1736287842953,-7718.92,9.788e-05,2]
[348058450,1736287842962,-500.0,9.788e-05,2]
[348058451,1736287842971,-500.0,9.788e-05,2]
[348058452,1736287842980,-717.21,9.788e-05,2]
[348058453,1736287842990,-500.0,9.788e-05,2]
[348058454,1736287842999,-500.0,9.788e-05,2]
[348058455,1736287843008,-500.0,9.788e-05,2]
[348058456,1736287843017,-685.31,9.788e-05,2]
[348058457,1736287843026,-500.0,9.788e-05,2]
[348058458,1736287843035,-854.86,9.788e-05,2]
[348058459,1736287843044,-500.0,9.788e-05,2]
[348058460,1736287843054,-500.0,9.788e-05,2]
[348058461,1736287843063,-620.23,9.788e-05,2]
[348058462,1736287843073,-845.42,9.788e-05,2]
[348058463,1736287843082,-705.88,9.788e-05,2]
[348058464,1736287843091,-500.0,9.788e-05,2]
[348058465,1736287843100,-500.0,9.788e-05,2]
[348058467,1736287843110,-4993.1,9.788e-05,2]
[348058468,1736287843120,-308.19173598,9.788e-05,2]
[348058470,1736287843129,-500.0,9.788e-05,2]
[348058472,1736287843139,-500.0,9.788e-05,2]
[348058474,1736287843148,-500.0,9.788e-05,2]
[348058476,1736287843157,-745.01,9.788e-05,2]
[348058478,1736287843167,-1294.58,9.788e-05,2]
[348058480,1736287843176,-606.4,9.788e-05,2]
[348058482,1736287843185,-1537.6,9.788e-05,2]
[348058484,1736287843194,-500.0,9.788e-05,2]
[348058486,1736287843203,-1001.35,9.788e-05,2]
[348058488,1736287843213,-990.52,9.788e-05,2]
[348058490,1736287843222,-500.0,9.788e-05,2]
[348058492,1736287843231,-526.11,9.788e-05,2]
[348058494,1736287843240,-500.0,9.788e-05,2]
[348058496,1736287843250,-967.58,9.788e-05,2]
[348058498,1736287843259,-500.0,9.788e-05,2]
[348058500,1736287843268,-500.0,9.788e-05,2]
[348058502,1736287843278,-500.0,9.788e-05,2]
[348058504,1736287843286,-500.0,9.788e-05,2]
[348058506,1736287843295,-500.0,9.788e-05,2]
[348058508,1736287843304,-729.29,9.788e-05,2]
[348058509,1736287843314,-500.0,9.788e-05,2]
[348058512,1736287843323,-1178.86,9.788e-05,2]
[348058514,1736287843333,-5042.79,9.788e-05,2]
[348058515,1736287843342,-964.72,9.788e-05,2]
[348058517,1736287843351,-500.0,9.788e-05,2]
[348058519,1736287843361,-342.92122059,9.788e-05,2]
[348058521,1736287843370,-500.0,9.788e-05,2]
[348058522,1736287843379,-1495.62,9.788e-05,2]
[348058524,1736287843388,-1516.46,9.788e-05,2]
[348058525,1736287843397,-512.59,9.788e-05,2]
[348058526,1736287843407,-500.0,9.788e-05,2]
[348058527,1736287843416,-1223.53,9.788e-05,2]
[348058528,1736287843428,-500.0,9.788e-05,2]
[348058529,1736287843438,-1640.05,9.788e-05,2]
[348058530,1736287843447,-500.0,9.788e-05,2]
[348058531,1736287843456,-500.0,9.788e-05,2]
[348058532,1736287843466,-500.0,9.788e-05,2]
[348058533,1736287843476,-166.51994275,9.788e-05,2]
[348058534,1736287844016,-333.48005725,9.788e-05,2]
[348058535,1736287844026,-487.90557625,9.788e-05,2]
[348058536,1736287844038,-337.94442375,9.788e-05,2]
[348058537,1736287844049,-500.0,9.788e-05,2]
[348058538,1736287844059,-500.0,9.788e-05,2]
[348058539,1736287844067,-639.36,9.788e-05,2]
[348058540,1736287844077,-47.69557625,9.788e-05,2]
[348058541,1736287844100,-1040.89442375,9.788e-05,2]
[348058542,1736287844109,-500.0,9.788e-05,2]
[348058543,1736287844119,-5158.34,9.788e-05,2]
[348058544,1736287844128,-500.0,9.788e-05,2]
[348058545,1736287844138,-500.0,9.788e-05,2]
[348058546,1736287844147,-727.32,9.788e-05,2]
[348058547,1736287844157,-793.32,9.788e-05,2]
[348058548,1736287844167,-500.0,9.788e-05,2]
[348058549,1736287844177,-1530.75,9.788e-05,2]
[348058550,1736287844186,-500.0,9.788e-05,2]
[348058551,1736287844195,-500.0,9.788e-05,2]
[348058552,1736287844205,-500.0,9.788e-05,2]
[348058553,1736287844215,-1031.62,9.788e-05,2]
[348058554,1736287844225,-500.0,9.788e-05,2]
[348058555,1736287844371,-500.0,9.788e-05,2]
[348058556,1736287844382,-500.0,9.788e-05,2]
[348058557,1736287844391,-500.0,9.788e-05,2]
[348058558,1736287844400,-547.3,9.788e-05,2]
[348058559,1736287844410,-680.18,9.788e-05,2]
[348058560,1736287844419,-628.26,9.788e-05,2]
[348058561,1736287844429,-661.48,9.788e-05,2]
[348058562,1736287844438,-739.45,9.788e-05,2]
[348058563,1736287844448,-500.0,9.788e-05,2]
[348058564,1736287844457,-1803.72988244,9.788e-05,2]
[348058565,1736287844476,-361.45011756,9.788e-05,2]
[348058566,1736287844485,-500.0,9.788e-05,2]
[348058567,1736287844495,-1338.5,9.788e-05,2]
[348058568,1736287844504,-500.0,9.788e-05,2]
[348058569,1736287844515,-500.0,9.788e-05,2]
[348058570,1736287844525,-500.0,9.788e-05,2]
[348058571,1736287844534,-1502.07,9.788e-05,2]
[348058572,1736287844543,-656.9,9.788e-05,2]
[348058573,1736287844552,-500.0,9.788e-05,2]
[348058574,1736287844562,-500.0,9.788e-05,2]
[348058575,1736287844571,-567.89,9.788e-05,2]
[348058576,1736287844580,-500.0,9.788e-05,2]
[348058577,1736287844589,-500.0,9.788e-05,2]
[348058578,1736287844598,-500.0,9.788e-05,2]
[348058579,1736287844607,-500.0,9.788e-05,2]
[348058580,1736287844616,-500.0,9.788e-05,2]
[348058581,1736287844626,-500.0,9.788e-05,2]
[348058582,1736287844635,-500.0,9.788e-05,2]
[348058583,1736287844644,-500.0,9.788e-05,2]
[348058584,1736287844655,-803.94,9.789e-05,2]
[348058585,1736287844668,-1601.11748971,9.789e-05,2]
[348058586,1736287844698,-303.91251029,9.789e-05,2]
[348058587,1736287844710,-370.00072971,9.789e-05,2]
[348058588,1736287844722,-1701.43927029,9.789e-05,2]
[348058589,1736287844735,-2516.71,9.789e-05,2]
[348058590,1736287844745,-1800.49,9.789e-05,2]
[348058591,1736287844757,-3902.23,9.789e-05,2]
[348058592,1736287844766,-2258.71,9.789e-05,2]
[348058593,1736287844775,-500.0,9.789e-05,2]
[348058594,1736287844785,-4047.1581595,9.789e-05,2]
[348058595,1736287844830,-1924.29050493,9.789e-05,2]
[348058596,1736287844843,-90.71133557,9.789e-05,2]
[348058597,1736287844852,-893.35,9.789e-05,2]
[348058598,1736287844862,-636.33,9.789e-05,2]
[348058599,1736287844871,-500.0,9.789e-05,2]
[348058600,1736287844880,-301.09791489,9.789e-05,2]
[348058612,1736287845834,-478.42500009,9.787e-05,2]
[348058613,1736287845852,-338.4250005,9.787e-05,2]
[348058614,1736287845870,-152.87999941,9.787e-05,2]
[348058615,1736287845884,-500.0,9.788e-05,2]
[348058616,1736287845898,-400.57001509,9.789e-05,2]
[348058617,1736287845915,-792.83061176,9.789e-05,2]
[348058618,1736287845934,-2934.66145826,9.789e-05,2]
[348058619,1736287845949,-594.39,9.789e-05,2]
[348058620,1736287845965,-500.0,9.789e-05,2]
[348058621,1736287845980,-1040.83,9.789e-05,2]
[348058622,1736287845997,-519.74,9.789e-05,2]
[348058623,1736287846012,-621.89,9.789e-05,2]
[348058624,1736287846027,-543.39,9.789e-05,2]
[348058625,1736287846042,-625.9,9.789e-05,2]
[348058626,1736287846057,-415.89,9.789e-05,2]
[348058627,1736287846073,-1071.82,9.789e-05,2]
[348058628,1736287846089,-500.0,9.789e-05,2]
[348058629,1736287846106,-500.0,9.789e-05,2]
[348058630,1736287846123,-834.5,9.789e-05,2]
[348058631,1736287846138,-2229.84,9.789e-05,2]
[348058632,1736287846147,-740.45,9.789e-05,2]
[348058633,1736287846157,-1193.69,9.789e-05,2]
[348058634,1736287846166,-737.04,9.789e-05,2]
[348058635,1736287846175,-500.0,9.789e-05,2]
[348058636,1736287846185,-668.2,9.789e-05,2]
[348058637,1736287846195,-502.24,9.789e-05,2]
[348058638,1736287846205,-5465.49,9.789e-05,2]
[348058639,1736287846215,-1519.2,9.789e-05,2]
[348058640,1736287846226,-707.32,9.789e-05,2]
[348058641,1736287846235,-1472.41,9.789e-05,2]
[348058642,1736287846245,-500.0,9.789e-05,2]
[348058643,1736287846254,-187.98,9.789e-05,2]
[348058644,1736287846263,-357.72824384,9.789e-05,2]
[348058645,1736287846275,-159.76175616,9.789e-05,2]
[348058646,1736287846285,-684.43,9.789e-05,2]
[348058647,1736287846294,-500.0,9.789e-05,2]
[348058648,1736287846304,-18.4133907,9.789e-05,2]
[348058672,1736287847074,-958.81148113,9.789e-05,2]
[348058674,1736287847085,-104.32512817,9.789e-05,2]
[348058676,1736287847094,-500.0,9.789e-05,2]
[348058678,1736287847103,-97.34153883,9.789e-05,2]
[348058680,1736287847115,-402.65846117,9.789e-05,2]
[348058682,1736287847125,-620.96,9.789e-05,2]
[348058684,1736287847134,-500.0,9.789e-05,2]
[348058686,1736287847143,-551.73,9.789e-05,2]
[348058688,1736287847153,-472.56469162,9.789e-05,2]
[348058690,1736287847164,-489.29187735,9.789e-05,2]
[348058692,1736287847176,-583.32343103,9.789e-05,2]
[348058694,1736287847186,-423.30286976,9.789e-05,2]
[348058696,1736287847197,-352.72799642,9.789e-05,2]
[348058698,1736287847208,-697.56913382,9.789e-05,2]
[348058700,1736287847217,-2537.47,9.789e-05,2]
[348058702,1736287847227,-2403.9,9.789e-05,2]
[348058704,1736287847238,-2686.09,9.789e-05,2]
[348058706,1736287847247,-1976.28,9.789e-05,2]
[348058709,1736287847257,-2530.9,9.789e-05,2]
[348058711,1736287847267,-500.0,9.789e-05,2]
[348058713,1736287847277,-6323.43,9.789e-05,2]
[348058715,1736287847286,-1319.86,9.789e-05,2]
[348058717,1736287847296,-3192.31,9.789e-05,2]
[348058718,1736287847305,-2833.19,9.789e-05,2]
[348058720,1736287847314,-4419.9,9.789e-05,2]
[348058722,1736287847323,-4468.29,9.789e-05,2]
[348058724,1736287847333,-2098.65,9.789e-05,2]
[348058727,1736287847343,-655.18,9.789e-05,2]
[348058729,1736287847352,-1976.28,9.79e-05,2]
[348058731,1736287847361,-1888.95,9.79e-05,2]
[348058733,1736287847371,-1914.39,9.793e-05,2]
[348058735,1736287847380,-1219.06,9.793e-05,2]
[348058736,1736287847390,-1344.04,9.793e-05,2]
[348058738,1736287847399,-986.32,9.793e-05,2]
[348058740,1736287847408,-1866.25,9.793e-05,2]
[348058742,1736287847418,-2350.04,9.793e-05,2]
[348058744,1736287847428,-2419.87,9.793e-05,2]
[348058746,1736287847438,-1856.69500218,9.793e-05,2]
[348058749,1736287847450,-930.24437232,9.793e-05,2]
[348058752,1736287847469,-1726.4606255,9.793e-05,2]
[348058754,1736287847479,-1187.9793745,9.793e-05,2]
[348058827,1736287848299,-500.0,9.787e-05,2]
[348058828,1736287848309,-40.441375,9.788e-05,2]
[348058830,1736287848321,-394.72,9.788e-05,2]
[348058832,1736287848332,-853.05,9.788e-05,2]
[348058834,1736287848344,-704.82880413,9.788e-05,2]
[348058836,1736287848356,-1216.1,9.788e-05,2]
[348058838,1736287848367,-1756.86348607,9.788e-05,2]
[348058849,1736287848465,-43344.04678913,9.788e-05,2]
[348058851,1736287848476,-500.0,9.79e-05,2]
[348058853,1736287848489,-7917.1306255,9.793e-05,2]
[348058855,1736287848499,-1907.27,9.793e-05,2]
[348058857,1736287848508,-1326.24,9.793e-05,2]
[348058859,1736287848518,-1439.75,9.793e-05,2]
[348058861,1736287848527,-562.82,9.793e-05,2]
[348058863,1736287848536,-1635.35,9.793e-05,2]
[348058864,1736287848545,-2260.26,9.793e-05,2]
[348058866,1736287848555,-1667.38,9.793e-05,2]
[348058868,1736287848564,-3100.91,9.793e-05,2]
[348058870,1736287848573,-500.0,9.793e-05,2]
[348058872,1736287848582,-1295.83,9.793e-05,2]
[348058874,1736287848592,-1703.44,9.793e-05,2]
[348058876,1736287848601,-1185.92,9.793e-05,2]
[348058878,1736287848610,-4163.57,9.793e-05,2]
[348058880,1736287848619,-3435.37,9.793e-05,2]
[348058882,1736287848629,-1057.94900348,9.8e-05,3]
[348058885,1736287848647,-3842.05099652,9.8e-05,3]
[348058887,1736287848656,-826.74,9.856e-05,2]
[348058889,1736287848669,-4485.668703,9.9e-05,2]
[348058891,1736287848678,-2559.8444,9.9e-05,2]
[348058893,1736287848687,-6100.0,9.9e-05,3]
[348058895,1736287848697,-266537.06947883,9.9e-05,2]
[348058897,1736287848709,-1973.17459424,9.9e-05,2]
[348058899,1736287848721,-246101.89783047,9.9e-05,2]
[348058901,1736287848732,-1272.0,9.976e-05,2]
[348058903,1736287848740,-4428.71768188,9.976e-05,2]
[348058906,1736287848752,-157.68751942,9.98e-05,2]
[348058907,1736287848759,-621.22,9.999e-05,2]
[348058909,1736287848765,-162.372,9.999e-05,2]
[348058911,1736287848774,-2842.997,9.999e-05,2]
[348058913,1736287848783,-500.0,9.999e-05,2]
[348058915,1736287848792,-11508.73173657,0.0001,2]
[348059053,1736287903360,8000.0,0.0002301,120]
[348059054,1736287993564,500.0,0.0002219,120]
[348059055,1736288000861,450.524932,0.0002219,120]
[348059056,1736288036334,200.0,0.0002219,120]
[348059057,1736288089334,176.06,0.00015616,61]
[348059058,1736288089565,176.06,0.00015616,90]
[348059059,1736288089973,176.06,0.00015616,120]
[348059060,1736288109868,2011.0,0.00023,120]
[348059061,1736288392480,170.64,7.247e-05,2]
[348059062,1736288514819,1720.71,8.219e-05,2]
[348059063,1736288594424,500.0,0.0002219,120]
[348059064,1736288635827,200.0,0.0002219,120]
[348059065,1736288708970,150.0,8.088e-05,2]
[348059074,1736288982696,176.06,0.00015616,120]
[348059090,1736289031975,-200.0,8.724e-05,2]
[348059092,1736289031985,-300.0,9.001e-05,2]
[348059093,1736289031998,-1187.24449135,9.003e-05,3]